Workbook

Sheet Лист1
A2: Свод отчетов по исполнению муниципальных заданий учреждений Тонкинского муниципального района за 2019 год
A4: Наименование учреждения | B4: Наименование муниципальной услуги | C4: Ед. изм. натуральных показателей | D4: План | F4: Исполнение | H4: Процент исполнения,%
D5: Натуральные показатели | E5: Стоимостные показатели (руб.) | F5: Натуральные показатели | G5: Стоимостные показатели (руб.) | H5: Натуральные показатели | I5: Стоимостные показатели (руб.)
A6: Образование Всего | E6: =E11+E17+E23+E27+E33+E39+E42+E45+E48+E51+E54+E57+E59+E61 -> 141811210.4 | G6: =G11+G17+G23+G27+G33+G39+G42+G45+G48+G51+G54+G57+G59+G61 -> 139497269.3 | I6: 1380.348211
A7: МАОУ "Тонкинская ОШ" | B7: Реализация основных общеобразовательных программ начального общего образования | C7: чел. | D7: 258 | E7: 10535033.53 | F7: 258 | G7: 10201590.55 | H7: 100 | I7: =G7/E7*100 -> 96.83491297 | J7: =E7/D7 -> 40833.46329 | K7: =G7/F7 -> 39541.04864
B8: Реализация основных общеобразовательных программ основного общего образования | C8: чел. | D8: 288 | E8: 21980502.05 | F8: 288 | G8: 21899194.09 | H8: 100 | I8: =G8/E8*100 -> 99.63009052 | J8: =E8/D8 -> 76321.18767 | K8: =G8/F8 -> 76038.86837
B9: Реализация основных общеобразовательных программ среднего общего образования | C9: чел. | D9: 44 | E9: 4858774.61 | F9: 44 | G9: 4492637 | H9: 100 | I9: 92.46440431 | J9: 110426.6957 | K9: 102105.3864
B10: Организация отдыха детей и молодежи | C10: чел. | D10: 483 | E10: 632350 | F10: 483 | G10: 632350 | H10: 100 | I10: 100 | J10: 1309.213251 | K10: 1309.213251
B11: Итого | D11: 1073 | E11: =SUM(E7:E10) -> 38006660.19 | F11: 1073 | G11: =SUM(G7:G10) -> 37225771.64 | H11: 100 | I11: 97.94539024 | J11: 35420.93214 | K11: 34693.17021
A12: МБОУ "Пакалевская ОШ" | B12: Реализация основных общеобразовательных программ начального общего образования | C12: чел. | D12: 6 | E12: 2501992.38 | F12: 6 | G12: 2067490 | H12: 100 | I12: 82.63374487 | J12: 416998.73 | K12: 344581.6667
B13: Реализация основных общеобразовательных программ основного общего образования | C13: чел. | D13: 4 | E13: 4271421.12 | F13: 4 | G13: 4271421.12 | H13: 100 | I13: 100 | J13: 1067855.28 | K13: 1067855.28
B14: Организация отдыха детей и молодежи | C14: чел. | D14: 14 | E14: 19950 | F14: 14 | G14: 19950 | H14: 100 | I14: 100 | J14: 1425 | K14: 1425
B15: Реализация основных общеобразовательных программ дошкольного образования | C15: чел. | D15: 9 | E15: 1132657.66 | F15: 9 | G15: 1132657.66 | H15: 100 | I15: 100 | J15: 125850.8511 | K15: 125850.8511
B16: Присмотр и уход | C16: чел. | D16: 9 | E16: 494865.08 | F16: 9 | G16: 494865.08 | H16: 100 | I16: 100 | J16: 54985.00889 | K16: 54985.00889
B17: Итого | D17: 36 | E17: =SUM(E12:E16) -> 8420886.24 | F17: 36 | G17: =SUM(G12:G16) -> 7986383.86 | H17: 100 | I17: 94.84018228 | J17: 233913.5067 | K17: 221843.9961
A18: МБОУ "Вязовская ОШ" | B18: Реализация основных общеобразовательных программ начального общего образования | C18: чел. | D18: 19 | E18: 3228874.72 | F18: 19 | G18: 3045644.19 | H18: 100 | I18: 94.32525118 | J18: 169940.7747 | K18: 160297.0626
B19: Реализация основных общеобразовательных программ основного общего образования | C19: чел. | D19: 17 | E19: 4051248.99 | F19: 17 | G19: 4051248.99 | H19: 100 | I19: 100 | J19: 238308.7641 | K19: 238308.7641
B20: Организация отдыха детей и молодежи | C20: чел. | D20: 50 | E20: 82050 | F20: 50 | G20: 82050 | H20: 100 | I20: 100 | J20: 1641 | K20: 1641
B21: Реализация основных общеобразовательных программ дошкольного образования | C21: чел. | D21: 6 | E21: 1257705.58 | F21: 6 | G21: 1257705.58 | H21: 100 | I21: 100 | J21: 209617.5967 | K21: 209617.5967
B22: Присмотр и уход | C22: чел. | D22: 6 | E22: 508296.32 | F22: 6 | G22: 508296.32 | H22: 100 | I22: 100 | J22: 84716.05333 | K22: 84716.05333
B23: Итого | D23: 98 | E23: =SUM(E18:E22) -> 9128175.61 | F23: 98 | G23: =SUM(G18:G22) -> 8944945.08 | H23: 100 | I23: 97.99269276 | J23: 93144.64908 | K23: 91274.9498
A24: МБОУ "Бердниковская ОШ" | B24: Реализация основных общеобразовательных программ начального общего образования | C24: чел. | D24: 14 | E24: 2496222.77 | F24: 14 | G24: 2496222.77 | H24: 100 | I24: 100 | J24: 178301.6264 | K24: 178301.6264
B25: Реализация основных общеобразовательных программ основного общего образования | C25: чел. | D25: 21 | E25: 4477419.83 | F25: 21 | G25: 4477419.83 | H25: 100 | I25: 100 | J25: 213210.4681 | K25: 213210.4681
B26: Организация отдыха детей и молодежи | C26: чел. | D26: 33 | E26: 55800 | F26: 33 | G26: 55800 | H26: 100 | I26: 100 | J26: 1690.909091 | K26: 1690.909091
B27: Итого | D27: 68 | E27: =SUM(E24:E26) -> 7029442.6 | F27: 68 | G27: =SUM(G24:G26) -> 7029442.6 | H27: 100 | I27: 100 | J27: 103374.1559 | K27: 103374.1559
A28: МБОУ "Пахутинская ОШ" | B28: Реализация основных общеобразовательных программ начального общего образования | C28: чел. | D28: 7 | E28: 2041022.1 | F28: 7 | G28: 1527226.28 | H28: 100 | I28: 74.82654303 | J28: 291574.5857 | K28: 218175.1829
B29: Реализация основных общеобразовательных программ основного общего образования | C29: чел. | D29: 7 | E29: 4674384.74 | F29: 7 | G29: 4674384.74 | H29: 100 | I29: 100 | J29: 667769.2486 | K29: 667769.2486
B30: Организация отдыха детей и молодежи | C30: чел. | D30: 21 | E30: 33300 | F30: 21 | G30: 33300 | H30: 100 | I30: 100 | J30: 1585.714286 | K30: 1585.714286
B31: Реализация основных общеобразовательных программ дошкольного образования | C31: чел. | D31: 5 | E31: 1087749.65 | F31: 5 | G31: 1087749.65 | H31: 100 | I31: 100 | J31: 217549.93 | K31: 217549.93
B32: Присмотр и уход | C32: чел. | D32: 5 | E32: 545538.6 | F32: 5 | G32: 545538.6 | H32: 100 | I32: 100 | J32: 109107.72 | K32: 109107.72
B33: Итого | D33: 45 | E33: =SUM(E28:E32) -> 8381995.09 | F33: 45 | G33: =SUM(G28:G32) -> 7868199.27 | H33: 100 | I33: 93.87024432 | J33: 186266.5576 | K33: 174848.8727
A34: МБОУ "Большесодомовская ОШ" | B34: Реализация основных общеобразовательных программ начального общего образования | C34: чел. | D34: 15 | E34: 2867254.5 | F34: 15 | G34: 2533226.2 | H34: 100 | I34: 88.35023888 | J34: 191150.3 | K34: 168881.7467
B35: Реализация основных общеобразовательных программ основного общего образования | C35: чел. | D35: 15 | E35: 4971523.27 | F35: 15 | G35: 4971523.27 | H35: 100 | I35: 100 | J35: 331434.8847 | K35: 331434.8847
B36: Организация отдыха детей и молодежи | C36: чел. | D36: 39 | E36: 63000 | F36: 39 | G36: 63000 | H36: 100 | I36: 100 | J36: 1615.384615 | K36: 1615.384615
B37: Реализация основных общеобразовательных программ дошкольного образования | C37: чел. | D37: 15 | E37: 1039887.11 | F37: 15 | G37: 1039887.11 | H37: 100 | I37: 100 | J37: 69325.80733 | K37: 69325.80733
B38: Присмотр и уход | C38: чел. | D38: 15 | E38: 611600 | F38: 15 | G38: 611600 | H38: 100 | I38: 100 | J38: 40773.33333 | K38: 40773.33333
B39: Итого | D39: 99 | E39: =SUM(E34:E38) -> 9553264.88 | F39: 99 | G39: =SUM(G34:G38) -> 9219236.58 | H39: 100 | I39: 96.50351682 | J39: 96497.62505 | K39: 93123.60182
A40: МБДОУ д/с №1 "Теремок" | B40: Реализация основных общеобразовательных программ дошкольного образования | C40: чел. | D40: 96 | E40: 6363763.76 | F40: 96 | G40: 6363763.76 | H40: 100 | I40: 100 | J40: 66289.20583 | K40: 66289.20583
B41: Присмотр и уход | C41: чел. | D41: 96 | E41: 2791771.66 | F41: 96 | G41: 2791771.66 | H41: 100 | I41: 100 | J41: 29080.95479 | K41: 29080.95479
B42: Итого | D42: 192 | E42: =SUM(E40:E41) -> 9155535.42 | F42: 192 | G42: =SUM(G40:G41) -> 9155535.42 | H42: 100 | I42: 100 | J42: 47685.08031 | K42: 47685.08031
A43: МБДОУ д/с №2 "Малышок" | B43: Реализация основных общеобразовательных программ дошкольного образования | C43: чел. | D43: 39 | E43: 4471466.07 | F43: 39 | G43: 4471466.07 | H43: 100 | I43: 100 | J43: 114652.9762 | K43: 114652.9762
B44: Присмотр и уход | C44: чел. | D44: 39 | E44: 2062600 | F44: 39 | G44: 2062600 | H44: 100 | I44: 100 | J44: 52887.17949 | K44: 52887.17949
B45: Итого | D45: 78 | E45: =SUM(E43:E44) -> 6534066.07 | F45: 78 | G45: =SUM(G43:G44) -> 6534066.07 | H45: 100 | I45: 100 | J45: 83770.07782 | K45: 83770.07782
A46: МБДОУ д/с №4 "Солнышко" | B46: Реализация основных общеобразовательных программ дошкольного образования | C46: чел. | D46: 116 | E46: 8923511.11 | F46: 116 | G46: 8923511.11 | H46: 100 | I46: 100 | J46: 76926.81991 | K46: 76926.81991
B47: Присмотр и уход | C47: чел. | D47: 116 | E47: 4107003 | F47: 116 | G47: 4107003 | H47: 100 | I47: 100 | J47: 35405.19828 | K47: 35405.19828
B48: Итого | D48: 232 | E48: =SUM(E46:E47) -> 13030514.11 | F48: 232 | G48: =SUM(G46:G47) -> 13030514.11 | H48: 100 | I48: 100 | J48: 56166.00909 | K48: 56166.00909
A49: МБДОУ д/с №5 "Сказка" | B49: Реализация основных общеобразовательных программ дошкольного образования | C49: чел. | D49: 56 | E49: 4907324.05 | F49: 56 | G49: 4907324.05 | H49: 100 | I49: 100 | J49: 87630.78661 | K49: 87630.78661
B50: Присмотр и уход | C50: чел. | D50: 56 | E50: 2264850 | F50: 56 | G50: 2264850 | H50: 100 | I50: 100 | J50: 40443.75 | K50: 40443.75
B51: Итого | D51: 112 | E51: =SUM(E49:E50) -> 7172174.05 | F51: 112 | G51: =SUM(G49:G50) -> 7172174.05 | H51: 100 | I51: 100 | J51: 64037.2683 | K51: 64037.2683
A52: МБДОУ д/с №8 "Елочка" | B52: Реализация основных общеобразовательных программ дошкольного образования | C52: чел. | D52: 22 | E52: 3055300 | F52: 22 | G52: 3055300 | H52: 100 | I52: 100 | J52: 138877.2727 | K52: 138877.2727
B53: Присмотр и уход | C53: чел. | D53: 22 | E53: 940077.28 | F53: 22 | G53: 940077.28 | H53: 100 | I53: 100 | J53: 42730.78545 | K53: 42730.78545
B54: Итого | D54: 44 | E54: =SUM(E52:E53) -> 3995377.28 | F54: 44 | G54: =SUM(G52:G53) -> 3995377.28 | H54: 100 | I54: 100 | J54: 90804.02909 | K54: 90804.02909
A55: МБДОУ д/с №9 "Василек" | B55: Реализация основных общеобразовательных программ дошкольного образования | C55: чел. | D55: 8 | E55: 1296734.01 | F55: 8 | G55: 1296734.01 | H55: 100 | I55: 100 | J55: 162091.7513 | K55: 162091.7513
B56: Присмотр и уход | C56: чел. | D56: 8 | E56: 536550 | F56: 8 | G56: 536550 | H56: 100 | I56: 100 | J56: 67068.75 | K56: 67068.75
B57: Итого | D57: 16 | E57: =SUM(E55:E56) -> 1833284.01 | F57: 16 | G57: =SUM(G55:G56) -> 1833284.01 | H57: 100 | I57: 100 | J57: 114580.2506 | K57: 114580.2506
A58: МБУ ДО ЦДО | B58: реализация дополнительных общеразвивающих программ | C58: чел. | D58: 715 | E58: 8396893.9 | F58: 715 | G58: 8329398.35 | H58: 100 | I58: =G58/E58*100 -> 99.19618432 | J58: 11743.90755 | K58: 11649.50818
B59: Итого | D59: 715 | E59: 8396893.9 | F59: 715 | G59: 8329398.35 | H59: 100 | I59: =G59/E59*100 -> 99.19618432 | J59: 11743.90755 | K59: 11649.50818
A60: МБУ ХЭС СО | B60: Содержание (эксплуатация) имущества, находящегося в государственной (муниципальной ) собственности | C60: ед. | D60: 11 | E60: 11172941 | F60: 11 | G60: 11172941 | H60: 100 | I60: 100 | J60: 1015721.909 | K60: 1015721.909
B61: Итого | D61: 11 | E61: 11172941 | F61: 11 | G61: 11172941 | H61: 100 | I61: 100 | J61: 1015721.909 | K61: 1015721.909
A62: Культура | D62: =D65+D68+D72+D74+D76 -> 427317 | E62: =E65+E68+E72+E74+E76 -> 46198404.73 | F62: 427317 | G62: 46198404.73 | H62: =F62/D62*100 -> 100 | I62: 100 | J62: 108.1127236
A63: МБУК«МЦКС» | B63: Организация деятельности клубных формирований и формирований самодеятельного творчества | C63: ед. | D63: 141 | E63: 142200 | F63: 141 | G63: 142200 | H63: 100 | I63: 100
B64: Организация и проведение культурно-массовых мероприятий | C64: чел. | D64: 199722 | E64: 23592674 | F64: 199722 | G64: 23592674 | H64: 100 | I64: 100
A65: Итого: | D65: =SUM(D63:D64) -> 199863 | E65: =SUM(E63:E64) -> 23734874 | F65: 199863 | G65: 23734874 | H65: 100 | I65: 100
A66: МБУК «НКМ» | B66: Публичный показ музейных предметов, музейных колекций | C66: чел. | D66: 10850 | E66: 1441940 | F66: 10850 | G66: 1441940 | H66: =F66/D66*100 -> 100 | I66: =G66/E66*100 -> 100
B67: Формирование учет, изучение, обеспечение физического сохранения и безопасности музейных предметов, музейных коллекций | C67: ед. | D67: 4395 | E67: 1325400 | F67: 4395 | G67: 1325400 | H67: =F67/D67*100 -> 100 | I67: =G67/E67*100 -> 100
A68: Итого: | D68: =SUM(D66:D67) -> 15245 | E68: =SUM(E66:E67) -> 2767340 | F68: 15245 | G68: 2767340 | H68: 100 | I68: 100
A69: МБУК «МЦБС» | B69: Библиотечное, библиографическое и информационное обслуживание пользователей библиотеки | C69: чел. | D69: 64999 | E69: 3166600 | F69: 64999 | G69: 3166600 | H69: =F69/D69*100 -> 100 | I69: 100
B70: Формирование, учет, изучение, обеспечение физического сохранения и безопасности фондов библиотек, включая оцифровку фондов | C70: ед. | D70: 122587 | E70: 5538628.73 | F70: 122587 | G70: 5538628.73 | H70: 100 | I70: 100
B71: Библиографическая обработка документов и создание каталогов | C71: ед. | D71: 24516 | E71: 3374000 | F71: 24516 | G71: 3374000 | H71: 100 | I71: 100
A72: Итого: | D72: =SUM(D69:D71) -> 212102 | E72: =SUM(E69:E71) -> 12079228.73 | F72: 212102 | G72: 12079228.73 | H72: 100 | I72: 100
A73: МБУ ДО "ДМШ" | B73: Реализация дополнительных общеобразовательных предпрофесиональных программ в области исскуств | C73: чел. | D73: 62 | E73: 3634805.16 | F73: 62 | G73: 3634805.16 | H73: =F73/D73*100 -> 100 | I73: 100
A74: Итого: | D74: =SUM(D73) -> 62 | E74: =SUM(E73) -> 3634805.16 | F74: 62 | G74: 3634805.16 | H74: 100 | I74: 100
A75: МБУ ДО "ДХШ" | B75: Реализация дополнительных общеобразовательных предпрофесиональных программ в области исскуств | C75: чел. | D75: 45 | E75: 3982156.84 | F75: 45 | G75: 3982156.84 | H75: =F75/D75*100 -> 100 | I75: 100
A76: Итого: | D76: =SUM(D75) -> 45 | E76: =SUM(E75) -> 3982156.84 | F76: 45 | G76: 3982156.84 | H76: 100 | I76: 100
A77: Спорт | D77: =SUM(D78:D81) -> 161 | E77: =SUM(E78:E81) -> 3011826.72 | F77: 161 | G77: 2370007.68 | H77: =F77/D77*100 -> 100 | I77: 78.69004097
A78: МБУ ФСК «Кристалл». | B78: Организация и проведение Официальных Физкультурных (физкультурно-оздоровительных) мероприятий | C78: количество мероприятий | D78: 31 | E78: 2679186 | F78: 31 | G78: 2102910.23 | H78: 100 | I78: 78.49063969
B79: Организация и проведение официальных спортивных мероприятий | C79: количество мероприятий | D79: 106 | E79: 332640.72 | F79: 106 | G79: 267097.45 | H79: 100 | I79: 80.2960774
B80: Проведение тестирования выполнения нормативов испытаний (тестов) комплекса ГТО | C80: количество мероприятий | D80: 12 | E80: 0 | F80: 12 | G80: 0 | H80: 100
B81: Организация и проведение Физкультурных и спортивных мероприятий в рамках Всероссийского физкультурно-спортивного комплекса «Готов к труду и обороне» (ГТО) (за исключением тестирования выполнения нормативов испытаний комплекса ГТО) | C81: количество мероприятий | D81: 12 | E81: 0 | F81: 12 | G81: 0 | H81: 100
A82: Итого: | D82: =SUM(D78:D81) -> 161 | E82: =SUM(E78:E81) -> 3011826.72 | F82: 161 | G82: 2370007.68 | H82: 100 | I82: 78.69004097

Sheet Лист2

Sheet Лист3
